bitfinex/quotes_BTCUSD_20230107
["timestamp","ask_amount","ask_price","bid_price","bid_amount"]
[1673055868533,2.47117698,16980.0,16979.0,0.01514934]
[1673055869558,3.06010498,16980.0,16979.0,0.01514934]
[1673055883182,3.06010498,16980.0,16979.0,0.01505699]
[1673055892397,3.47109696,16980.0,16979.0,0.01505699]
[1673055892655,3.06010498,16980.0,16979.0,0.01505699]
[1673055893149,2.88660498,16980.0,16979.0,0.01505699]
[1673055896409,2.28986741,16980.0,16979.0,0.01505699]
[1673055896709,2.45124987,16980.0,16979.0,0.01505699]
[1673055896947,2.97365634,16980.0,16979.0,0.01505699]
[1673055897192,2.62354987,16980.0,16979.0,0.01505699]
[1673055898187,2.59254987,16980.0,16979.0,0.01305699]
[1673055898442,2.67154987,16980.0,16979.0,0.02205699]
[1673055898738,2.59254987,16980.0,16979.0,0.01305699]
[1673055898935,2.67054987,16980.0,16979.0,0.02205699]
[1673055900432,2.97054987,16980.0,16979.0,0.02205699]
[1673055900695,2.67054987,16980.0,16979.0,0.02205699]
[1673055901454,2.67054987,16980.0,16979.0,0.01362799]
[1673055909065,2.90223137,16980.0,16979.0,0.01362799]
[1673055910346,2.67054987,16980.0,16979.0,0.01362799]
[1673055919377,2.67046192,16980.0,16979.0,0.01362799]
[1673055924732,2.66960583,16980.0,16979.0,0.01362799]
[1673055932933,2.68810738,16980.0,16979.0,0.01362799]
[1673055933187,2.66960583,16980.0,16979.0,0.01362799]
[1673055933440,2.96960583,16980.0,16979.0,0.01362799]
[1673055933952,2.66960583,16980.0,16979.0,0.01362799]
[1673055937447,2.96960583,16980.0,16979.0,0.01362799]
[1673055937685,2.66960583,16980.0,16979.0,0.01362799]
[1673055939189,2.69393499,16980.0,16979.0,0.01362799]
[1673055945758,2.52043499,16980.0,16979.0,0.01362799]
[1673055946775,2.52043499,16980.0,16979.0,0.01352209]
[1673055949400,2.49610583,16980.0,16979.0,0.01352209]
[1673055949650,2.51810261,16980.0,16979.0,0.01352209]
[1673055951679,2.49610583,16980.0,16979.0,0.01352209]
[1673055952527,2.79610583,16980.0,16979.0,0.01352209]
[1673055953502,2.8824303,16980.0,16979.0,0.01352209]
[1673055954832,2.60404254,16980.0,16979.0,0.01352209]
[1673055955079,2.51771807,16980.0,16979.0,0.01352209]
[1673055955329,2.49610583,16980.0,16979.0,0.01352209]
[1673055955779,2.520203,16980.0,16979.0,0.01352209]
[1673055959539,2.49610583,16980.0,16979.0,0.01352209]
[1673055960067,2.520384,16980.0,16979.0,0.01352209]
[1673055960309,2.49610583,16980.0,16979.0,0.01352209]
[1673055960555,2.99970221,16980.0,16979.0,0.01352209]
[1673055960806,3.0218347,16980.0,16979.0,0.01352209]
[1673055961786,2.51823832,16980.0,16979.0,0.01352209]
[1673055963059,2.49610583,16980.0,16979.0,0.01352209]
[1673055963928,2.51973639,16980.0,16979.0,0.01352209]
[1673055964490,2.49610583,16980.0,16979.0,0.01352209]
[1673055966267,2.51568778,16980.0,16979.0,0.01352209]
[1673055967004,2.51568778,16980.0,16979.0,0.01345869]
[1673055968274,2.49610583,16980.0,16979.0,0.01345869]
[1673055968522,2.51844714,16980.0,16979.0,0.01345869]
[1673055969021,2.51802322,16980.0,16979.0,0.01145869]
[1673055969252,2.51774556,16980.0,16979.0,0.01145869]
[1673055969486,2.51728601,16980.0,16979.0,0.01145869]
[1673055969746,2.51661519,16980.0,16979.0,0.01145869]
[1673055970102,2.51648512,16980.0,16979.0,0.01145869]
[1673055970347,2.51616057,16980.0,16979.0,0.01145869]
[1673055970606,2.51573104,16980.0,16979.0,0.01145869]
[1673055970854,2.51533391,16980.0,16979.0,0.01145869]
[1673055971086,2.51460832,16980.0,16979.0,0.01145869]
[1673055971300,2.51407549,16980.0,16979.0,0.01145869]
[1673055971546,2.81332741,16980.0,16979.0,0.01145869]
[1673055971767,2.81290583,16980.0,16979.0,0.01145869]
[1673055971985,2.81244758,16980.0,16979.0,0.01145869]
[1673055972274,2.51244758,16980.0,16979.0,0.01145869]
[1673055972490,2.51209521,16980.0,16979.0,0.01145869]
[1673055972747,2.81117023,16980.0,16979.0,0.01145869]
[1673055972959,3.25545469,16980.0,16979.0,0.01145869]
[1673055973255,3.27363619,16980.0,16979.0,0.01145869]
[1673055973499,3.27325092,16980.0,16979.0,0.01145869]
[1673055974231,4.14241448,16980.0,16979.0,0.01145869]
[1673055974478,4.14169623,16980.0,16979.0,0.01145869]
[1673055974728,4.14096669,16980.0,16979.0,0.01145869]
[1673055975007,4.14062905,16980.0,16979.0,0.01145869]
[1673055975495,4.14061905,16980.0,16979.0,0.01145869]
[1673055977155,3.27057586,16980.0,16979.0,0.01145869]
[1673055977871,2.97609586,16980.0,16979.0,0.01145869]
[1673055979929,2.95721849,16980.0,16979.0,0.01145869]
[1673055980519,3.82726168,16980.0,16979.0,0.01145869]
[1673055982053,4.70560991,16980.0,16979.0,0.01145869]
[1673055982792,3.83556672,16980.0,16979.0,0.01145869]
[1673055983024,4.70560991,16980.0,16979.0,0.01145869]
[1673055983280,3.83556672,16980.0,16979.0,0.01145869]
[1673055983525,4.70560991,16980.0,16979.0,0.01145869]
[1673055983998,4.73043823,16980.0,16979.0,0.01145869]
[1673055984253,4.47209,16980.0,16979.0,0.01145869]
[1673055984507,4.44719583,16980.0,16979.0,0.01145869]
[1673055988338,4.46629823,16980.0,16979.0,0.01145869]
[1673055988613,4.44719583,16980.0,16979.0,0.01145869]
[1673055989151,5.04107296,16980.0,16979.0,0.01145869]
[1673055991885,4.17102977,16980.0,16979.0,0.01145869]
[1673055992134,5.04107296,16980.0,16979.0,0.01145869]
[1673055994788,4.17102977,16980.0,16979.0,0.01145869]
[1673055995041,4.46550977,16980.0,16979.0,0.01145869]
[1673055996705,5.33555296,16980.0,16979.0,0.01145869]
[1673056000067,5.04107296,16980.0,16979.0,0.01145869]
[1673056000306,5.33555296,16980.0,16979.0,0.01145869]
[1673056001043,5.04107296,16980.0,16979.0,0.01145869]
[1673056001287,5.33555296,16980.0,16979.0,0.01145869]
[1673056001781,5.04107296,16980.0,16979.0,0.01145869]
[1673056002030,5.33555296,16980.0,16979.0,0.01145869]
[1673056003964,5.04107296,16980.0,16979.0,0.01145869]
[1673056004463,5.33555296,16980.0,16979.0,0.01145869]
[1673056004702,5.33555296,16980.0,16979.0,0.01136681]
[1673056006011,5.33590636,16980.0,16979.0,0.01136681]
[1673056008881,4.50150251,16980.0,16979.0,0.01136681]
[1673056011037,4.50135363,16980.0,16979.0,0.01136681]
[1673056012882,5.37011488,16980.0,16979.0,0.01136681]
[1673056013135,4.50135363,16980.0,16979.0,0.01136681]
[1673056013627,4.32905363,16980.0,16979.0,0.01136681]
[1673056025857,4.32898021,16980.0,16979.0,0.01136681]
[1673056027402,4.32710876,16980.0,16979.0,0.01136681]
[1673056031196,4.32712876,16980.0,16979.0,0.01136681]
[1673056035747,4.32713876,16980.0,16979.0,0.01136681]
[1673056038614,4.320474,16980.0,16979.0,0.01136681]
[1673056040898,4.025964,16980.0,16979.0,0.01136681]
[1673056041150,4.320484,16980.0,16979.0,0.01136681]
[1673056041661,4.666384,16980.0,16979.0,0.01136681]
[1673056041920,4.72795326,16980.0,16979.0,0.01023013]
[1673056042141,1.02,16979.0,16978.0,0.000118]
[1673056042422,0.62,16977.0,16975.0,0.00015]
[1673056042717,3.89453086,16976.0,16975.0,0.00015]
[1673056042997,4.28292803,16976.0,16975.0,0.00015]
[1673056043233,4.06683591,16976.0,16973.0,0.54479065]
[1673056043486,0.99525361,16974.0,16973.0,0.54479065]
[1673056043738,3.45298245,16974.0,16973.0,0.54479065]
[1673056044228,2.96339559,16974.0,16973.0,0.54479065]
[1673056044969,3.45298245,16974.0,16973.0,0.54479065]
[1673056045222,3.58798245,16974.0,16973.0,0.54479065]
[1673056045512,3.09839559,16974.0,16973.0,0.54479065]
[1673056045765,3.58798245,16974.0,16973.0,0.54479065]
[1673056046806,3.09839559,16974.0,16973.0,0.54479065]
[1673056047049,3.58798245,16974.0,16973.0,0.0041934]
[1673056048054,3.45298245,16974.0,16973.0,0.0041934]
[1673056048271,3.58798245,16974.0,16973.0,0.0041934]
[1673056049330,2.99272884,16974.0,16973.0,0.0041934]
[1673056049802,2.50314198,16974.0,16973.0,0.0041934]
[1673056051567,3.17112303,16974.0,16973.0,0.0041934]
[1673056052046,3.76637664,16974.0,16973.0,0.0041934]
[1673056056562,3.58798245,16974.0,16973.0,0.0041934]
[1673056062537,3.58798245,16974.0,16973.0,0.00409744]
[1673056064281,3.45298245,16974.0,16973.0,0.00409744]
[1673056064536,3.58898245,16974.0,16973.0,0.00409744]
[1673056065028,3.6113776,16974.0,16973.0,0.00409744]
[1673056069273,3.01612399,16974.0,16973.0,0.00409744]
[1673056069520,3.43453175,16974.0,16973.0,0.00409744]
[1673056070516,4.02978536,16974.0,16973.0,0.00409744]
[1673056072258,3.6113776,16974.0,16973.0,0.00409744]
[1673056086395,3.6113776,16974.0,16973.0,0.00401487]
[1673056087688,3.01612399,16974.0,16973.0,0.00401487]
[1673056091877,3.61165023,16974.0,16973.0,0.00401487]
[1673056093233,3.01612399,16974.0,16973.0,0.00401487]
[1673056093736,3.01601954,16974.0,16973.0,0.00401487]
[1673056094756,3.01591389,16974.0,16973.0,0.00401487]
[1673056098444,3.44430922,16974.0,16973.0,0.00401487]
[1673056099501,3.01591389,16974.0,16973.0,0.00401487]
[1673056106662,3.00741389,16974.0,16973.0,0.00401487]
[1673056115294,3.00741389,16974.0,16973.0,0.00389896]
[1673056116377,0.41904131,16973.0,16972.0,0.01102269]
[1673056116588,1.0865762,16973.0,16972.0,0.01102269]
[1673056116823,2.85995395,16973.0,16972.0,0.01102269]
[1673056118870,2.99495395,16973.0,16972.0,0.01102269]
[1673056120860,3.39334194,16973.0,16972.0,0.01102269]
[1673056122030,2.99495395,16973.0,16972.0,0.01102269]
[1673056123787,2.50536709,16973.0,16972.0,0.01102269]
[1673056124044,2.99495395,16973.0,16972.0,0.01102269]
[1673056133434,2.99487547,16973.0,16972.0,0.01102269]
[1673056134925,2.40833972,16973.0,16972.0,0.01102269]
[1673056142493,2.40869312,16973.0,16972.0,0.01102269]
[1673056149918,2.74845502,16973.0,16972.0,0.01102269]
[1673056151673,2.40869312,16973.0,16972.0,0.01102269]
[1673056156902,2.40869312,16973.0,16972.0,0.0109142]
[1673056157167,2.407984,16973.0,16972.0,0.0109142]
[1673056163832,3.00347303,16973.0,16972.0,0.0109142]
[1673056165082,2.407984,16973.0,16972.0,0.0109142]
[1673056180030,2.407984,16973.0,16972.0,0.01079595]
[1673056198181,2.40789536,16973.0,16972.0,0.01079595]
[1673056201323,2.39948036,16973.0,16972.0,0.01079595]
[1673056207824,2.99541182,16973.0,16972.0,0.01079595]
[1673056208083,2.39948036,16973.0,16972.0,0.01079595]
[1673056222650,2.39948036,16973.0,16972.0,0.01071039]
[1673056235501,2.39877124,16973.0,16972.0,0.01071039]
[1673056250763,2.39870235,16973.0,16972.0,0.01071039]
[1673056258280,1.90911549,16973.0,16972.0,0.01071039]
[1673056259045,2.50538848,16973.0,16972.0,0.01071039]
[1673056260082,3.10162017,16973.0,16972.0,0.01071039]
[1673056260358,2.50538848,16973.0,16972.0,0.01071039]
[1673056260608,3.10162904,16973.0,16972.0,0.01071039]
[1673056261357,3.5912159,16973.0,16972.0,0.01071039]
[1673056261579,3.10162904,16973.0,16972.0,0.01071039]
[1673056262418,3.5912159,16973.0,16972.0,0.01071039]
[1673056263610,2.99497534,16973.0,16972.0,0.01071039]
[1673056265232,3.59102578,16973.0,16972.0,0.01071039]
[1673056269084,2.99497534,16973.0,16972.0,0.01071039]
[1673056274756,2.99497534,16973.0,16972.0,0.01060932]
[1673056279315,3.59107777,16973.0,16972.0,0.01060932]
[1673056280287,2.99497534,16973.0,16972.0,0.01060932]
[1673056280500,3.59107362,16973.0,16972.0,0.01060932]
[1673056280992,2.99497534,16973.0,16972.0,0.01060932]
[1673056281237,2.99479598,16973.0,16972.0,0.01060932]
[1673056281448,2.39870235,16973.0,16972.0,0.01060932]
[1673056282669,2.99479439,16973.0,16972.0,0.01060932]
[1673056283209,2.99478439,16973.0,16972.0,0.01060932]
[1673056288616,2.99478439,16973.0,16972.0,0.01142432]
[1673056289330,2.99480503,16973.0,16972.0,0.01142432]
[1673056289543,2.39870235,16973.0,16972.0,0.01142432]
[1673056290054,0.42480463,16972.0,16971.0,0.63250137]
[1673056290304,2.37816902,16972.0,16971.0,0.63250137]
[1673056292032,2.51316902,16972.0,16971.0,0.63250137]
[1673056295716,2.51316902,16972.0,16971.0,0.00109208]
[1673056296691,3.15177365,16972.0,16971.0,0.00109208]
[1673056297386,3.00275588,16972.0,16971.0,0.00109208]
[1673056303341,2.51316902,16972.0,16971.0,0.00109208]
[1673056311425,3.00275588,16972.0,16971.0,0.00109208]
[1673056311675,2.51316902,16972.0,16971.0,0.00109208]
[1673056314383,2.51316902,16972.0,16971.0,0.00099056]
[1673056314598,3.00275588,16972.0,16971.0,0.00099056]
[1673056321198,3.00204676,16972.0,16971.0,0.00099056]
[1673056327237,2.5124599,16972.0,16971.0,0.00099056]
[1673056328243,1.91636845,16972.0,16971.0,0.00099056]
[1673056328988,2.5124599,16972.0,16971.0,0.00099056]
[1673056331394,3.00204676,16972.0,16971.0,0.00099056]
[1673056331652,2.5124599,16972.0,16971.0,0.00099056]
[1673056334493,3.00204676,16972.0,16971.0,0.00099056]
[1673056334988,2.5124599,16972.0,16971.0,0.00099056]
[1673056336703,3.00204676,16972.0,16971.0,0.00099056]
[1673056337978,2.5124599,16972.0,16971.0,0.00099056]
[1673056340672,1.91636845,16972.0,16971.0,0.00099056]
[1673056342940,2.5124599,16972.0,16971.0,0.00099056]
[1673056343466,2.5124599,16972.0,16971.0,0.00091388]
[1673056346258,1.91636845,16972.0,16971.0,0.00091388]
[1673056347914,2.5124599,16972.0,16971.0,0.00091388]
[1673056348398,1.91636845,16972.0,16971.0,0.00091388]
[1673056350825,1.32716345,16972.0,16971.0,0.00091388]
[1673056351408,1.81675031,16972.0,16971.0,0.00091388]
[1673056351655,1.32716345,16972.0,16971.0,0.00091388]
[1673056354461,1.81675031,16972.0,16971.0,0.00091388]
[1673056354708,2.41284176,16972.0,16971.0,0.00091388]
[1673056356728,1.9232549,16972.0,16971.0,0.00091388]
[1673056357234,2.41284176,16972.0,16971.0,0.00091388]
[1673056360115,1.9232549,16972.0,16971.0,0.00091388]
[1673056360862,2.41284176,16972.0,16971.0,0.00091388]
[1673056363425,1.9232549,16972.0,16971.0,0.00091388]
[1673056363902,1.9232549,16972.0,16971.0,0.00079857]
[1673056368456,1.9225457,16972.0,16971.0,0.00079857]
[1673056369897,1.9225457,16972.0,16971.0,0.06343128]
[1673056370427,2.41213256,16972.0,16971.0,0.06343128]
[1673056370672,1.9225457,16972.0,16971.0,0.06343128]
[1673056371434,2.41213256,16972.0,16971.0,0.06343128]
[1673056371674,2.41213256,16972.0,16971.0,0.00079857]
[1673056373105,1.9225457,16972.0,16971.0,0.00079857]
[1673056375295,2.41213256,16972.0,16971.0,0.00079857]
[1673056375543,1.9225457,16972.0,16971.0,0.00079857]
[1673056376842,1.9225457,16972.0,16971.0,0.06343128]
[1673056379308,1.9225457,16972.0,16971.0,0.00079857]
[1673056379564,2.41213256,16972.0,16971.0,0.00079857]
[1673056379817,3.00133756,16972.0,16971.0,0.00079857]
[1673056380369,2.5117507,16972.0,16971.0,0.00079857]
[1673056383096,2.5121041,16972.0,16971.0,0.00079857]
[1673056385588,1.91601265,16972.0,16971.0,0.00079857]
[1673056385831,2.5121041,16972.0,16971.0,0.00079857]
[1673056391968,2.5121041,16972.0,16971.0,0.0007174]
[1673056392839,2.5121041,16972.0,16971.0,0.06334199]
[1673056393562,2.5121041,16972.0,16971.0,0.0007174]
[1673056397765,3.00169096,16972.0,16971.0,0.0007174]
[1673056398731,2.5121041,16972.0,16971.0,0.0007174]
[1673056398980,3.00169096,16972.0,16971.0,0.0007174]
[1673056399308,2.5121041,16972.0,16971.0,0.0007174]
[1673056399566,3.00169096,16972.0,16971.0,0.0007174]
[1673056400266,2.5121041,16972.0,16971.0,0.0007174]
[1673056402288,3.00169096,16972.0,16971.0,0.0007174]
[1673056402555,2.5121041,16972.0,16971.0,0.0007174]
[1673056403635,3.00169096,16972.0,16971.0,0.0007174]
[1673056412232,0.41920619,16971.0,16970.0,0.00038516]
[1673056414084,0.94927376,16971.0,16970.0,0.60664416]
[1673056414325,1.23055708,16971.0,16970.0,0.60664416]
[1673056414573,0.70048951,16971.0,16970.0,0.00038516]
[1673056414836,1.230515,16971.0,16970.0,0.00038516]
[1673056415091,0.70048951,16971.0,16970.0,0.00038516]
[1673056416558,1.23050456,16971.0,16970.0,0.00038516]
[1673056430022,1.23050456,16971.0,16970.0,0.0635768]
[1673056430267,1.23050456,16971.0,16970.0,0.00038516]
[1673056434027,1.23050456,16971.0,16970.0,0.0003131]
[1673056445752,1.2297954,16971.0,16970.0,0.0003131]
[1673056460850,1.2297954,16971.0,16970.0,0.6065721]
[1673056461107,1.2297954,16971.0,16970.0,0.73038244]
[1673056461842,1.2297954,16971.0,16970.0,0.12412344]
[1673056467778,0.83050456,16971.0,16970.0,0.12412344]
[1673056468028,0.83050456,16971.0,16970.0,0.73038244]
[1673056469292,0.83050456,16971.0,16970.0,0.72538244]
[1673056469543,0.83050456,16971.0,16970.0,0.606259]
[1673056469813,0.83050456,16971.0,16969.0,0.63153127]
[1673056470061,0.53000924,16970.0,16969.0,0.63153127]
[1673056470342,0.70698587,16970.0,16969.0,0.63153127]
[1673056473048,1.10698587,16970.0,16969.0,0.62153127]
[1673056473301,1.15898587,16970.0,16969.0,0.62153127]
[1673056486540,1.15898587,16970.0,16968.0,0.18082266]
[1673056486856,1.64464658,16970.0,16968.0,0.18082266]
[1673056487113,0.4,16969.0,16968.0,0.18082266]
[1673056487866,0.39975449,16969.0,16968.0,0.18082266]
[1673056488553,0.40675449,16969.0,16968.0,0.18082266]
[1673056491176,0.84818993,16969.0,16968.0,0.18082266]
[1673056491833,0.007,16969.0,16968.0,0.18082266]
[1673056492024,0.448437,16969.0,16968.0,0.18082266]
[1673056492230,0.007,16969.0,16968.0,0.18082266]
[1673056493200,0.4483358,16969.0,16968.0,0.18082266]
[1673056493709,0.4483334,16969.0,16968.0,0.18082266]
[1673056494688,0.00690492,16969.0,16968.0,0.18082266]
[1673056494950,0.00690492,16969.0,16968.0,0.00732266]
[1673056495973,0.44832294,16969.0,16968.0,0.00732266]
[1673056496479,0.00690492,16969.0,16968.0,0.00732266]
[1673056498741,0.052,16969.0,16968.0,0.00732266]
[1673056498992,0.4523534,16969.0,16968.0,0.00732266]
[1673056501589,0.0523534,16969.0,16968.0,0.69650771]
[1673056501832,0.49375717,16969.0,16968.0,0.69650771]
[1673056503096,0.0523534,16969.0,16968.0,0.69650771]
[1673056504332,0.4937668,16969.0,16968.0,0.69650771]
[1673056505585,0.0523534,16969.0,16968.0,0.69650771]
[1673056506320,0.49380735,16969.0,16968.0,0.69650771]
[1673056508294,0.4930981,16969.0,16968.0,0.69650771]
[1673056509743,0.05164415,16969.0,16968.0,0.69650771]
[1673056532465,0.05164415,16969.0,16968.0,0.69643565]
[1673056538159,0.58165339,16969.0,16968.0,0.69643565]
[1673056538643,0.05164415,16969.0,16968.0,0.69643565]
[1673056540491,0.58165339,16969.0,16968.0,0.69643565]
[1673056541557,0.05164415,16969.0,16968.0,0.69643565]
[1673056543254,0.58165339,16969.0,16968.0,0.69643565]
[1673056544764,0.05164415,16969.0,16968.0,0.69643565]
[1673056545598,0.58165339,16969.0,16968.0,0.69643565]
[1673056548061,0.05164415,16969.0,16968.0,0.69643565]
[1673056553296,0.05164415,16969.0,16968.0,1.30269465]
[1673056553788,0.49329158,16969.0,16968.0,1.30269465]
[1673056554828,0.05164415,16969.0,16968.0,1.30269465]
[1673056555074,0.4932853,16969.0,16968.0,1.30269465]
[1673056555317,0.4932853,16969.0,16968.0,0.69643565]
[1673056555833,0.4932853,16969.0,16968.0,0.69633703]
[1673056556087,0.8932853,16969.0,16968.0,0.69633703]
[1673056556842,0.4932853,16969.0,16968.0,0.69633703]
[1673056566502,0.84650406,16969.0,16968.0,0.69633703]
[1673056566753,0.4932853,16969.0,16968.0,0.69633703]
[1673056567251,0.4932853,16969.0,16968.0,0.64643703]
[1673056568479,0.4931256,16969.0,16968.0,0.64643703]
[1673056571070,0.05164415,16969.0,16968.0,0.64643703]
[1673056571337,0.05093486,16969.0,16968.0,0.64643703]
[1673056571817,0.49238942,16969.0,16968.0,0.64643703]
[1673056574700,0.05093486,16969.0,16968.0,0.64643703]
[1673056576474,0.49239893,16969.0,16968.0,0.64643703]
[1673056576703,0.05093486,16969.0,16968.0,0.64643703]
[1673056589636,0.5809441,16969.0,16967.0,3.50926511]
[1673056589874,0.4414489,16968.0,16967.0,4.02992542]
[1673056591350,0.4484489,16968.0,16967.0,4.03192542]
[1673056593868,0.4484489,16968.0,16967.0,4.03182886]
[1673056598298,0.60151666,16968.0,16967.0,4.03182886]
[1673056599359,0.15306776,16968.0,16967.0,4.02982886]
[1673056599584,0.20506776,16968.0,16967.0,4.02982886]
[1673056602531,0.26422815,16968.0,16967.0,3.50916855]
[1673056606898,0.70547661,16968.0,16967.0,3.50916855]
[1673056607719,0.26422815,16968.0,16967.0,3.50916855]
[1673056608491,0.7054726,16968.0,16967.0,3.50916855]
[1673056610365,0.26422815,16968.0,16967.0,3.50916855]
[1673056613569,0.70551351,16968.0,16967.0,3.50916855]
[1673056614041,0.26422815,16968.0,16967.0,3.50916855]
[1673056617675,0.26409216,16968.0,16967.0,3.50916855]
[1673056617898,0.26338283,16968.0,16967.0,3.50916855]
[1673056618888,0.20422244,16968.0,16967.0,3.50916855]
[1673056624812,0.26367802,16968.0,16967.0,3.50916855]
[1673056625062,0.79368726,16968.0,16967.0,3.50916855]
[1673056626689,0.26367802,16968.0,16967.0,3.50916855]
[1673056627690,0.79368726,16968.0,16967.0,3.50916855]
[1673056635776,0.79404066,16968.0,16967.0,3.50916855]
[1673056642033,0.79404066,16968.0,16967.0,3.50905532]
[1673056642264,1.19404066,16968.0,16967.0,3.50905532]
[1673056650265,1.68012892,16968.0,16967.0,3.50905532]
[1673056650520,1.19404066,16968.0,16967.0,3.50905532]
[1673056653234,1.68012892,16968.0,16967.0,3.50905532]
[1673056654467,1.15011968,16968.0,16967.0,3.50905532]
[1673056654964,1.67991212,16968.0,16967.0,3.50905532]
[1673056656560,2.26925612,16968.0,16967.0,3.50905532]
[1673056659138,2.20980054,16968.0,16967.0,3.50905532]
[1673056659407,3.57592354,16968.0,16967.0,3.50905532]
[1673056660387,3.28124354,16968.0,16967.0,3.50905532]
[1673056661865,2.68515209,16968.0,16967.0,3.50905532]
[1673056662599,2.68515209,16968.0,16967.0,3.50899471]
[1673056668269,3.21461242,16968.0,16967.0,3.50899471]
[1673056670587,3.21459265,16968.0,16967.0,3.50899471]
[1673056671768,3.21459148,16968.0,16967.0,3.50899471]
[1673056672013,2.68515209,16968.0,16967.0,3.50899471]
[1673056672515,3.21458314,16968.0,16967.0,3.50899471]
[1673056674902,2.68515209,16968.0,16967.0,3.50899471]
[1673056675656,2.51154411,16968.0,16967.0,3.50899471]
[1673056676671,2.08588845,16968.0,16967.0,3.50899471]
[1673056676929,1.49654445,16968.0,16967.0,3.50899471]
[1673056679754,1.55566673,16968.0,16967.0,3.50899471]
[1673056680261,2.04175499,16968.0,16967.0,3.50899471]
[1673056685016,2.63109899,16968.0,16967.0,3.50899471]
[1673056686464,2.14501073,16968.0,16967.0,3.50899471]
[1673056687191,2.63109899,16968.0,16967.0,3.50899471]
[1673056687690,2.14501073,16968.0,16967.0,3.50899471]
[1673056687936,2.63109899,16968.0,16967.0,3.50899471]
[1673056688955,2.1016664,16968.0,16967.0,3.50899471]
[1673056689667,2.69775785,16968.0,16967.0,3.50899471]
[1673056689921,2.1016664,16968.0,16967.0,3.50899471]
[1673056691520,1.61557814,16968.0,16967.0,3.50899471]
[1673056691749,2.1016664,16968.0,16967.0,3.50899471]
[1673056694502,1.61557814,16968.0,16967.0,3.50899471]
[1673056694963,2.1016664,16968.0,16967.0,3.50899471]
[1673056695695,1.9283664,16968.0,16967.0,3.50899471]
[1673056696267,1.92765707,16968.0,16967.0,3.50899471]
[1673056697481,1.44156881,16968.0,16967.0,3.50899471]
[1673056698491,1.92765707,16968.0,16967.0,3.50899471]
[1673056703590,2.69724852,16968.0,16967.0,3.50899471]
[1673056703843,3.00042852,16968.0,16967.0,3.50899471]
[1673056704869,2.70574852,16968.0,16967.0,3.50899471]
[1673056715564,2.87924852,16968.0,16967.0,3.50899471]
[1673056718066,2.87924852,16968.0,16967.0,3.50887935]
[1673056719557,2.87853919,16968.0,16967.0,3.50887935]
[1673056735702,2.70503919,16968.0,16967.0,3.50887935]
[1673056742882,2.70503919,16968.0,16967.0,3.50877916]
[1673056744589,2.21895093,16968.0,16967.0,3.50877916]
[1673056746020,2.70503919,16968.0,16967.0,3.50877916]
[1673056757105,2.704971,16968.0,16967.0,3.50877916]
[1673056762031,2.531471,16968.0,16967.0,3.50877916]
[1673056768536,2.522971,16968.0,16967.0,3.50877916]
[1673056772466,2.03675198,16968.0,16967.0,3.50877916]
[1673056772955,2.52284024,16968.0,16967.0,3.50877916]
[1673056785813,2.5227207,16968.0,16967.0,3.50877916]
[1673056791590,2.03663244,16968.0,16967.0,3.50877916]
[1673056793348,2.5227207,16968.0,16967.0,3.50877916]
[1673056796839,2.03663244,16968.0,16967.0,3.50877916]
[1673056797373,2.5227207,16968.0,16967.0,3.50877916]
[1673056802344,2.5227207,16968.0,16967.0,3.5063594]
[1673056805679,2.52201137,16968.0,16967.0,3.5063594]
[1673056817308,1.97680083,16968.0,16967.0,3.5063594]
[1673056817581,0.79136538,16968.0,16967.0,4.03324599]
[1673056817879,0.73185398,16968.0,16967.0,4.63950499]
[1673056818357,0.73185398,16968.0,16967.0,4.03324599]
[1673056818611,0.73185398,16968.0,16967.0,4.63950499]
[1673056818857,0.73185398,16968.0,16967.0,4.03324599]
[1673056820358,0.20202138,16968.0,16967.0,4.63950499]
[1673056821355,0.64333419,16968.0,16967.0,4.63950499]
[1673056822239,0.20202138,16968.0,16967.0,4.63950499]
[1673056822386,0.64320716,16968.0,16967.0,4.63950499]
[1673056822651,0.64320109,16968.0,16967.0,4.03324599]
[1673056822913,0.6431994,16968.0,16967.0,4.03324599]
[1673056824134,0.6431994,16968.0,16967.0,4.63950499]
[1673056826307,0.99600472,16968.0,16967.0,4.63950499]
[1673056826791,1.26061331,16968.0,16967.0,4.63950499]
[1673056827035,0.81943529,16968.0,16967.0,4.63950499]
[1673056827576,1.26061331,16968.0,16967.0,4.63943447]
[1673056827816,0.99600472,16968.0,16967.0,4.03317547]
[1673056828321,0.81938826,16968.0,16967.0,4.03317547]
[1673056829381,1.26056628,16968.0,16967.0,4.03317547]
[1673056830168,0.99600472,16968.0,16967.0,4.03317547]
[1673056830421,0.81935651,16968.0,16967.0,4.03317547]
[1673056831909,1.26053453,16968.0,16967.0,4.03317547]
[1673056832438,0.81935651,16968.0,16967.0,4.03317547]
[1673056833740,0.81935651,16968.0,16967.0,4.63943447]
[1673056833981,0.99568394,16968.0,16967.0,4.63943447]
[1673056834229,0.64287862,16968.0,16967.0,4.63943447]
[1673056834738,0.64287862,16968.0,16967.0,4.03317547]
[1673056834739,0.99568394,16968.0,16967.0,4.03317547]
[1673056834975,0.81935651,16968.0,16967.0,4.03317547]
[1673056835485,0.99566277,16968.0,16967.0,4.03317547]
[1673056836210,0.64285745,16968.0,16967.0,4.03317547]
[1673056840389,0.63785745,16968.0,16967.0,4.03317547]
[1673056846951,0.37332764,16968.0,16967.0,4.03317547]
[1673056847203,0.63785745,16968.0,16967.0,4.03317547]
[1673056847446,0.37332764,16968.0,16967.0,4.62255447]
[1673056847692,0.37332764,16968.0,16967.0,5.22881347]
[1673056852281,0.63785745,16968.0,16967.0,5.22881347]
[1673056858496,0.99066277,16968.0,16967.0,5.22881347]
[1673056858743,0.81435651,16968.0,16967.0,5.22881347]
[1673056858973,0.99089626,16968.0,16967.0,5.22881347]
[1673056859254,0.63809094,16968.0,16967.0,5.22881347]
[1673056860271,0.81435651,16968.0,16967.0,5.22881347]
[1673056861646,0.81435651,16968.0,16967.0,5.22931322]
[1673056862162,0.99092842,16968.0,16967.0,5.22931322]
[1673056862393,0.6381231,16968.0,16967.0,5.22931322]
[1673056862724,0.63813084,16968.0,16967.0,5.22931322]
[1673056863154,0.81435651,16968.0,16967.0,5.22931322]
[1673056863761,0.81435651,16968.0,16967.0,5.22871299]
[1673056866600,0.63813926,16968.0,16967.0,5.22871299]
[1673056866794,0.99094458,16968.0,16967.0,5.22871299]
[1673056867038,0.63813926,16968.0,16967.0,5.22871299]
[1673056867595,0.99087955,16968.0,16967.0,5.22871299]
[1673056867871,0.81429148,16968.0,16967.0,5.22871299]
[1673056868598,0.99087579,16968.0,16967.0,5.22871299]
[1673056869334,0.49346919,16968.0,16967.0,5.81809199]
[1673056882878,0.49275986,16968.0,16967.0,5.81809199]
[1673056885840,0.84556518,16968.0,16967.0,5.22871299]
[1673056886085,0.6689792,16968.0,16967.0,5.22871299]
[1673056889748,0.49285519,16968.0,16967.0,5.81809199]
[1673056890296,0.6689792,16968.0,16967.0,5.81809199]
[1673056891099,0.84566666,16968.0,16967.0,5.81809199]
[1673056891857,0.6689792,16968.0,16967.0,5.81809199]
[1673056892155,0.84565854,16968.0,16967.0,5.81809199]
[1673056892419,0.6689792,16968.0,16967.0,5.81809199]
[1673056892944,0.6689792,16968.0,16967.0,5.22871299]
[1673056901647,0.84562741,16968.0,16967.0,5.22871299]